Workbook

Sheet PERSONAL BUDGET
B2: 467 HUDSON ST
B4: PRICE $1,425,000 | E4: CAP RATE 5.52
B5: CURRENT RENT | C5: 2026 | D5: 2027 | E5: 2028 | F5: 2029 | G5: 2030 | H5: 2031 | I5: 2032 | J5: 2033 | K5: 2034 | L5: 2035 | M5: NOV | N5: DEC | O5: YEAR | P5: SPARKLINE
B6: 1A | C6: 1325 | D6: 1384.63 | E6: 1446.93 | F6: 1512.05 | G6: 1580.09 | H6: 1651.2 | I6: 1725.5 | J6: 1803.15 | K6: 1884.29 | L6: 1969.08 | O6: =SUM(tblIncome[[#This Row],[2026]:[DEC]]) -> 16281.92
B7: 1B | C7: 1750 | D7: 1825.75 | E7: 1911.04 | F7: 1997.05 | G7: 2087 | H7: 2180.92 | I7: 2279.06 | J7: 2381.61 | K7: 2488.79 | L7: 2600.8 | O7: =SUM(tblIncome[[#This Row],[2026]:[DEC]]) -> 21502.02
B8: 1C | C8: 1750 | D8: 1825.75 | E8: 1911.04 | F8: 1997.05 | G8: 2087 | H8: 2180.92 | I8: 2279.06 | J8: 2381.61 | K8: 2488.79 | L8: 2600.8 | O8: =SUM(tblIncome[[#This Row],[2026]:[DEC]]) -> 21502.02
B9: 2A | C9: 1153 | D9: 1204.89 | E9: 1259.1 | F9: 1315.76 | G9: 1374.98 | H9: 1436.85 | I9: 1502 | J9: 1569.08 | K9: 1639.69 | L9: 1713.48 | O9: =SUM(tblIncome[[#This Row],[2026]:[DEC]]) -> 14168.83
B10: 2B | C10: 1428 | D10: 1492.26 | E10: 1559.41 | F10: 1629.59 | G10: 1703 | H10: 1779.63 | I10: 1859.71 | J10: 1943.4 | K10: 2030.86 | L10: 2122.25 | O10: =SUM(tblIncome[[#This Row],[2026]:[DEC]]) -> 17548.11
B11: 2C | C11: 1750 | D11: 1825.75 | E11: 1911.04 | F11: 1997.05 | G11: 2087 | H11: 2180.92 | I11: 2279.06 | J11: 2381.61 | K11: 2488.79 | L11: 2600.8 | O11: =SUM(tblIncome[[#This Row],[2026]:[DEC]]) -> 21502.02
B12: LAUNDRY | C12: 180 | D12: 180 | E12: 200 | F12: 200 | G12: 200 | H12: 200 | I12: 240 | J12: 240 | K12: 240 | L12: 240 | O12: =SUM(tblIncome[[#This Row],[2026]:[DEC]]) -> 2120
B13: TOTALS | C13: =SUBTOTAL(109,tblIncome[2026]) -> 9336 | D13: =SUBTOTAL(109,tblIncome[2027]) -> 9739.03 | E13: =SUBTOTAL(109,tblIncome[2028]) -> 10198.56 | F13: =SUBTOTAL(109,tblIncome[2029]) -> 10648.55 | G13: =SUBTOTAL(109,tblIncome[2030]) -> 11119.07 | H13: =SUBTOTAL(109,tblIncome[2031]) -> 11610.44 | I13: =SUBTOTAL(109,tblIncome[2032]) -> 12164.39 | J13: =SUBTOTAL(109,tblIncome[2033]) -> 12700.46 | K13: =SUBTOTAL(109,tblIncome[2034]) -> 13261.21 | L13: =SUBTOTAL(109,tblIncome[2035]) -> 13847.21 | M13: =SUBTOTAL(109,tblIncome[NOV]) -> 0 | N13: =SUBTOTAL(109,tblIncome[DEC]) -> 0 | O13: =SUBTOTAL(109,tblIncome[YEAR]) -> 114624.92
E15: CAP RATE
B16: CURRENT PRO FORMA | C16: 2026 | D16: 2027 | E16: 2028 | F16: 2029 | G16: 2030 | H16: 2031 | I16: 2032 | J16: 2033 | K16: 2034 | L16: 2035 | M16: NOV | N16: DEC | O16: YEAR
B17: 1A | C17: 1450 | D17: 1515.25 | E17: 1583.43 | F17: 1654.68 | G17: 1729.15 | H17: 1806.97 | I17: 1888.29 | J17: 1973.26 | K17: 2062.06 | L17: 2154.86 | O17: =SUM(tblHome[[#This Row],[2026]:[DEC]]) -> 17817.95
B18: 1B | C18: 1850 | D18: 1933.25 | E18: 2020.25 | F18: 2111.16 | G18: 2206.16 | H18: 2305.05 | I18: 2409.19 | J18: 2518 | K18: 2630.89 | L18: 2749.3 | O18: =SUM(tblHome[[#This Row],[2026]:[DEC]]) -> 22733.25
B19: 1C | C19: 1850 | D19: 1933.25 | E19: 2020.25 | F19: 2111.16 | G19: 2206.16 | H19: 2305.05 | I19: 2409.19 | J19: 2518 | K19: 2630.89 | L19: 2749.3 | O19: =SUM(tblHome[[#This Row],[2026]:[DEC]]) -> 22733.25
B20: 2A | C20: 1450 | D20: 1515.25 | E20: 1583.43 | F20: 1654.68 | G20: 1729.15 | H20: 1806.97 | I20: 1888.29 | J20: 1973.26 | K20: 2062.06 | L20: 2154.86 | O20: =SUM(tblHome[[#This Row],[2026]:[DEC]]) -> 17817.95
B21: 2B | C21: 1850 | D21: 1933.25 | E21: 2020.25 | F21: 2111.16 | G21: 2206.16 | H21: 2305.05 | I21: 2409.19 | J21: 2518 | K21: 2630.89 | L21: 2749.3 | O21: =SUM(tblHome[[#This Row],[2026]:[DEC]]) -> 22733.25
B22: 2C | C22: 1850 | D22: 1933.25 | E22: 2020.25 | F22: 2111.16 | G22: 2206.16 | H22: 2305.05 | I22: 2409.19 | J22: 2518 | K22: 2630.89 | L22: 2749.3 | O22: =SUM(tblHome[[#This Row],[2026]:[DEC]]) -> 22733.25
B23: LAUNDRY | C23: 180 | D23: 200 | E23: 200 | F23: 220 | G23: 220 | H23: 240 | I23: 240 | J23: 260 | K23: 260 | L23: 260 | O23: =SUM(tblHome[[#This Row],[2026]:[DEC]]) -> 2280
B24: PARKING | C24: 500 | D24: 550 | E24: 600 | F24: 650 | G24: 700 | H24: 750 | I24: 800 | J24: 850 | K24: 900 | L24: 950 | O24: =SUM(tblHome[[#This Row],[2026]:[DEC]]) -> 7250
B25: Total | C25: =SUBTOTAL(109,tblHome[2026]) -> 10980 | D25: =SUBTOTAL(109,tblHome[2027]) -> 11513.5 | E25: =SUBTOTAL(109,tblHome[2028]) -> 12047.86 | F25: =SUBTOTAL(109,tblHome[2029]) -> 12624 | G25: =SUBTOTAL(109,tblHome[2030]) -> 13202.94 | H25: =SUBTOTAL(109,tblHome[2031]) -> 13824.14 | I25: =SUBTOTAL(109,tblHome[2032]) -> 14453.34 | J25: =SUBTOTAL(109,tblHome[2033]) -> 15128.52 | K25: =SUBTOTAL(109,tblHome[2034]) -> 15807.68 | L25: =SUBTOTAL(109,tblHome[2035]) -> 16516.92 | M25: =SUBTOTAL(109,tblHome[NOV]) -> 0 | N25: =SUBTOTAL(109,tblHome[DEC]) -> 0 | O25: =SUBTOTAL(109,tblHome[YEAR]) -> 136098.9
B27: CURRENT ANNUAL | C27: 2026 | D27: 2027 | E27: 2028 | F27: 2029 | G27: 2030 | H27: 2031 | I27: 2032 | J27: 2033 | K27: 2034 | L27: 2035 | M27: NOV | N27: DEC | O27: YEAR
B28: 1A | C28: 15900 | D28: 16615.56 | E28: 17363.26 | F28: 18144.6 | G28: 18961.1 | H28: 19814.35 | I28: 20706 | J28: 21637.72 | K28: 22611.47 | L28: 23628.99 | O28: =SUM(tblDaily[[#This Row],[2026]:[DEC]]) -> 195383.05
B29: 1B | C29: 21000 | D29: 21945 | E29: 22932.52 | F29: 23964.49 | G29: 25042.89 | H29: 26169.82 | I29: 27347.46 | J29: 28578.1 | K29: 29864.11 | L29: 31208 | O29: =SUM(tblDaily[[#This Row],[2026]:[DEC]]) -> 258052.39
B30: 1C | C30: 21000 | D30: 21945 | E30: 22932.52 | F30: 23964.49 | G30: 25042.89 | H30: 26169.82 | I30: 27347.46 | J30: 28578.1 | K30: 29864.11 | L30: 31208 | O30: =SUM(tblDaily[[#This Row],[2026]:[DEC]]) -> 258052.39
B31: 2A | C31: 13836 | D31: 14458.62 | E31: 15109.26 | F31: 15789.18 | G31: 16500 | H31: 17242.18 | I31: 18018.07 | J31: 18828.88 | K31: 19676.18 | L31: 20561.61 | O31: =SUM(tblDaily[[#This Row],[2026]:[DEC]]) -> 170019.98
B32: 2B | C32: 17136 | D32: 17907.12 | E32: 18712.94 | F32: 19659.52 | G32: 20434.99 | H32: 21354.57 | I32: 22315.57 | J32: 23319.72 | K32: 24370 | L32: 25465.72 | O32: =SUM(tblDaily[[#This Row],[2026]:[DEC]]) -> 210676.15
B33: 2C | C33: 21000 | D33: 21945 | E33: 22932.52 | F33: 23964.49 | G33: 25042.89 | H33: 26169.82 | I33: 27347.46 | J33: 28578.1 | K33: 29864.11 | L33: 31208 | O33: =SUM(tblDaily[[#This Row],[2026]:[DEC]]) -> 258052.39
B34: LAUNDRY | C34: 2160 | D34: 2160 | E34: 2400 | F34: 2400 | G34: 2400 | H34: 2400 | I34: 2880 | J34: 2880 | K34: 2880 | L34: 2880 | O34: =SUM(tblDaily[[#This Row],[2026]:[DEC]]) -> 25440
B35: Total | C35: =SUBTOTAL(109,tblDaily[2026]) -> 112032 | D35: =SUBTOTAL(109,tblDaily[2027]) -> 116976.3 | E35: =SUBTOTAL(109,tblDaily[2028]) -> 122383.02 | F35: =SUBTOTAL(109,tblDaily[2029]) -> 127886.77 | G35: =SUBTOTAL(109,tblDaily[2030]) -> 133424.76 | H35: =SUBTOTAL(109,tblDaily[2031]) -> 139320.56 | I35: =SUBTOTAL(109,tblDaily[2032]) -> 145962.02 | J35: =SUBTOTAL(109,tblDaily[2033]) -> 152400.62 | K35: =SUBTOTAL(109,tblDaily[2034]) -> 159129.98 | L35: =SUBTOTAL(109,tblDaily[2035]) -> 166160.32 | M35: =SUBTOTAL(109,tblDaily[NOV]) -> 0 | N35: =SUBTOTAL(109,tblDaily[DEC]) -> 0 | O35: =SUBTOTAL(109,tblDaily[YEAR]) -> 1375676.35
B37: ANNUAL PRO FORMA | C37: 2026 | D37: 2027 | E37: 2028 | F37: 2029 | G37: 2030 | H37: 2031 | I37: 2032 | J37: 2033 | K37: 2034 | L37: 2035 | M37: NOV | N37: DEC | O37: YEAR
B38: 1A | C38: 17400 | D38: 18183 | E38: 19001.23 | F38: 19856.29 | G38: 20749.82 | H38: 21683.65 | I38: 22659.25 | J38: 23679 | K38: 24744.5 | L38: 25858 | O38: =SUM(tblTransportation[[#This Row],[2026]:[DEC]]) -> 213814.74
B39: 1B | C39: 22200 | D39: 23199 | E39: 24242.96 | F39: 25333.89 | G39: 26473.91 | H39: 27665.26 | I39: 28910.17 | J39: 30211.13 | K39: 31570.68 | L39: 32991.31 | O39: =SUM(tblTransportation[[#This Row],[2026]:[DEC]]) -> 272798.31
B40: 1C | C40: 22200 | D40: 23199 | E40: 24242.96 | F40: 25333.89 | G40: 26473.91 | H40: 27665.26 | I40: 28910.17 | J40: 30211.13 | K40: 31570.68 | L40: 32991.31 | O40: =SUM(tblTransportation[[#This Row],[2026]:[DEC]]) -> 272798.31
B41: 2A | C41: 17400 | D41: 18183 | E41: 19001.23 | F41: 19856.29 | G41: 20749.82 | H41: 21683.65 | I41: 22659.25 | J41: 23679 | K41: 24744.5 | L41: 58858 | O41: =SUM(tblTransportation[[#This Row],[2026]:[DEC]]) -> 246814.74
B42: 2B | C42: 22200 | D42: 23199 | E42: 24242.96 | F42: 25333.89 | G42: 26473.91 | H42: 27665.26 | I42: 28910.17 | J42: 30211.13 | K42: 31570.68 | L42: 32991.31 | O42: =SUM(tblTransportation[[#This Row],[2026]:[DEC]]) -> 272798.31
B43: 2C | C43: 22200 | D43: 23199 | E43: 24242.96 | F43: 25333.89 | G43: 26473.91 | H43: 27665.26 | I43: 28910.15 | J43: 30211.13 | K43: 31570.68 | L43: 32991.31 | O43: =SUM(tblTransportation[[#This Row],[2026]:[DEC]]) -> 272798.29
B44: LAUNDRY | C44: 2160 | D44: 2400 | E44: 2400 | F44: 2640 | G44: 2640 | H44: 2880 | I44: 2800 | J44: 3120 | K44: 3120 | L44: 3120 | O44: =SUM(tblTransportation[[#This Row],[2026]:[DEC]]) -> 27280
B45: PARKING | C45: 6000 | D45: 6600 | E45: 7200 | F45: 7800 | G45: 8400 | H45: 9000 | I45: 9600 | J45: 10200 | K45: 10800 | L45: 11400 | O45: =SUM(tblTransportation[[#This Row],[2026]:[DEC]]) -> 87000
B46: Total | C46: =SUBTOTAL(109,tblTransportation[2026]) -> 131760 | D46: =SUBTOTAL(109,tblTransportation[2027]) -> 138162 | E46: =SUBTOTAL(109,tblTransportation[2028]) -> 144574.3 | F46: =SUBTOTAL(109,tblTransportation[2029]) -> 151488.14 | G46: =SUBTOTAL(109,tblTransportation[2030]) -> 158435.28 | H46: =SUBTOTAL(109,tblTransportation[2031]) -> 165908.34 | I46: =SUBTOTAL(109,tblTransportation[2032]) -> 173359.16 | J46: =SUBTOTAL(109,tblTransportation[2033]) -> 181522.52 | K46: =SUBTOTAL(109,tblTransportation[2034]) -> 189691.72 | L46: =SUBTOTAL(109,tblTransportation[2035]) -> 231201.24 | M46: =SUBTOTAL(109,tblTransportation[NOV]) -> 0 | N46: =SUBTOTAL(109,tblTransportation[DEC]) -> 0 | O46: =SUBTOTAL(109,tblTransportation[YEAR]) -> 1666102.7
B48: EXPENSES | C48: 2026 | D48: 2027 | E48: 2028 | F48: 2029 | G48: 2030 | H48: 2031 | I48: 2032 | J48: 2033 | K48: 2034 | L48: 2035 | M48: NOV | N48: DEC | O48: YEAR
B49: TAXES | C49: 24895 | O49: =SUM(tblEntertainment[[#This Row],[2026]:[DEC]]) -> 24895
B50: INSURANCE | C50: 3700 | O50: =SUM(tblEntertainment[[#This Row],[2026]:[DEC]]) -> 3700
B51: REPAIRS | C51: 1400 | O51: =SUM(tblEntertainment[[#This Row],[2026]:[DEC]]) -> 1400
B52: UTILIRIES | C52: 3390 | O52: =SUM(tblEntertainment[[#This Row],[2026]:[DEC]]) -> 3390
B53: HEAT | C53: TENANT PAY | O53: =SUM(tblEntertainment[[#This Row],[2026]:[DEC]]) -> 0
B54: Total | C54: =SUBTOTAL(109,tblEntertainment[2026]) -> 33385 | D54: =SUBTOTAL(109,tblEntertainment[2027]) -> 0 | E54: =SUBTOTAL(109,tblEntertainment[2028]) -> 0 | F54: =SUBTOTAL(109,tblEntertainment[2029]) -> 0 | G54: =SUBTOTAL(109,tblEntertainment[2030]) -> 0 | H54: =SUBTOTAL(109,tblEntertainment[2031]) -> 0 | I54: =SUBTOTAL(109,tblEntertainment[2032]) -> 0 | J54: =SUBTOTAL(109,tblEntertainment[2033]) -> 0 | K54: =SUBTOTAL(109,tblEntertainment[2034]) -> 0 | L54: =SUBTOTAL(109,tblEntertainment[2035]) -> 0 | M54: =SUBTOTAL(109,tblEntertainment[NOV]) -> 0 | N54: =SUBTOTAL(109,tblEntertainment[DEC]) -> 0 | O54: =SUBTOTAL(109,tblEntertainment[YEAR]) -> 33385
B56: CURRENT NOI $78,647 | C56: CAP RATE 5.52
B59: PRO FORMA NOI $ 98,375 | C59: CAP RATE 6.90
B62: JAN | C62: FEB | D62: MAR | E62: APR | F62: MAY | G62: JUN | H62: JUL | I62: AUG | J62: SEP | K62: OCT | L62: NOV | M62: DEC | N62: YEAR
B64: PERSONAL | C64: JAN | D64: FEB | E64: MAR | F64: APR | G64: MAY | H64: JUN | I64: JUL | J64: AUG | K64: SEP | L64: OCT | M64: NOV | N64: DEC | O64: YEAR
B65: Clothing | E65: 29 | O65: =SUM(tblPersonal[[#This Row],[JAN]:[DEC]]) -> 29
B66: Gifts | D66: 35 | O66: =SUM(tblPersonal[[#This Row],[JAN]:[DEC]]) -> 35
B67: Salon/barber | C67: 25 | D67: 25 | E67: 25 | O67: =SUM(tblPersonal[[#This Row],[JAN]:[DEC]]) -> 75
B68: Books | O68: =SUM(tblPersonal[[#This Row],[JAN]:[DEC]]) -> 0
B69: Music (CDs, etc.) | O69: =SUM(tblPersonal[[#This Row],[JAN]:[DEC]]) -> 0
B70: Total | C70: =SUBTOTAL(109,tblPersonal[JAN]) -> 0 | D70: =SUBTOTAL(109,tblPersonal[FEB]) -> 0 | E70: =SUBTOTAL(109,tblPersonal[MAR]) -> 0 | F70: =SUBTOTAL(109,tblPersonal[APR]) -> 0 | G70: =SUBTOTAL(109,tblPersonal[MAY]) -> 0 | H70: =SUBTOTAL(109,tblPersonal[JUN]) -> 0 | I70: =SUBTOTAL(109,tblPersonal[JUL]) -> 0 | J70: =SUBTOTAL(109,tblPersonal[AUG]) -> 0 | K70: =SUBTOTAL(109,tblPersonal[SEP]) -> 0 | L70: =SUBTOTAL(109,tblPersonal[OCT]) -> 0 | M70: =SUBTOTAL(109,tblPersonal[NOV]) -> 0 | N70: =SUBTOTAL(109,tblPersonal[DEC]) -> 0 | O70: =SUBTOTAL(109,tblPersonal[YEAR]) -> 0
B72: FINANCIAL OBLIGATIONS | C72: JAN | D72: FEB | E72: MAR | F72: APR | G72: MAY | H72: JUN | I72: JUL | J72: AUG | K72: SEP | L72: OCT | M72: NOV | N72: DEC | O72: YEAR
B73: Long-term savings | C73: 25 | D73: 25 | E73: 25 | O73: =SUM(tblFinancial[[#This Row],[JAN]:[DEC]]) -> 75
B74: Retirement (401k, Roth IRA) | C74: 45 | D74: 45 | E74: 45 | O74: =SUM(tblFinancial[[#This Row],[JAN]:[DEC]]) -> 135
B75: Credit card payments | C75: 75 | D75: 75 | E75: 75 | O75: =SUM(tblFinancial[[#This Row],[JAN]:[DEC]]) -> 225
B76: Income tax (additional) | O76: =SUM(tblFinancial[[#This Row],[JAN]:[DEC]]) -> 0
B77: Other obligations | C77: 32 | D77: 34 | E77: 1 | O77: =SUM(tblFinancial[[#This Row],[JAN]:[DEC]]) -> 67
B78: Total | C78: =SUBTOTAL(109,tblFinancial[JAN]) -> 0 | D78: =SUBTOTAL(109,tblFinancial[FEB]) -> 0 | E78: =SUBTOTAL(109,tblFinancial[MAR]) -> 0 | F78: =SUBTOTAL(109,tblFinancial[APR]) -> 0 | G78: =SUBTOTAL(109,tblFinancial[MAY]) -> 0 | H78: =SUBTOTAL(109,tblFinancial[JUN]) -> 0 | I78: =SUBTOTAL(109,tblFinancial[JUL]) -> 0 | J78: =SUBTOTAL(109,tblFinancial[AUG]) -> 0 | K78: =SUBTOTAL(109,tblFinancial[SEP]) -> 0 | L78: =SUBTOTAL(109,tblFinancial[OCT]) -> 0 | M78: =SUBTOTAL(109,tblFinancial[NOV]) -> 0 | N78: =SUBTOTAL(109,tblFinancial[DEC]) -> 0 | O78: =SUBTOTAL(109,tblFinancial[YEAR]) -> 0
B80: MISC PAYMENTS | C80: JAN | D80: FEB | E80: MAR | F80: APR | G80: MAY | H80: JUN | I80: JUL | J80: AUG | K80: SEP | L80: OCT | M80: NOV | N80: DEC | O80: YEAR
B82: Total | C82: =SUBTOTAL(109,tblMisc[JAN]) -> 0 | D82: =SUBTOTAL(109,tblMisc[FEB]) -> 0 | E82: =SUBTOTAL(109,tblMisc[MAR]) -> 0 | F82: =SUBTOTAL(109,tblMisc[APR]) -> 0 | G82: =SUBTOTAL(109,tblMisc[MAY]) -> 0 | H82: =SUBTOTAL(109,tblMisc[JUN]) -> 0 | I82: =SUBTOTAL(109,tblMisc[JUL]) -> 0 | J82: =SUBTOTAL(109,tblMisc[AUG]) -> 0 | K82: =SUBTOTAL(109,tblMisc[SEP]) -> 0 | L82: =SUBTOTAL(109,tblMisc[OCT]) -> 0 | M82: =SUBTOTAL(109,tblMisc[NOV]) -> 0 | N82: =SUBTOTAL(109,tblMisc[DEC]) -> 0 | O82: =SUBTOTAL(109,tblMisc[YEAR]) -> 0
B84: TOTALS | C84: JAN | D84: FEB | E84: MAR | F84: APR | G84: MAY | H84: JUN | I84: JUL | J84: AUG | K84: SEP | L84: OCT | M84: NOV | N84: DEC | O84: YEAR
